[Event "*** Titled Tuesday Blitz"]
[Site "Chess.com"]
[Date "2018.06.05"]
[Round "2"]
[White "Hollywood_Chess"]
[Black "savinspm"]
[Result "0-1"]
[WhiteElo "2213"]
[BlackElo "2129"]
[TimeControl "180+2"]
[EndTime "13:27:16 PDT"]
[Termination "savinspm won by checkmate"]

1. d4 {[%clk 0:03:01.9]} 1... Nf6 {[%clk 0:03:00.3]} 2. c4 {[%clk 0:03:03]} 2...
e6 {[%clk 0:03:01.5]} 3. Nc3 {[%clk 0:03:04.2]} 3... Bb4 {[%clk 0:03:02.5]} 4.
e3 {[%clk 0:03:05.5]} 4... b6 {[%clk 0:03:03.3]} 5. Ne2 {[%clk 0:03:06.9]} 5...
Bb7 {[%clk 0:03:04.1]} 6. a3 {[%clk 0:03:08.4]} 6... Bxc3+ {[%clk 0:03:04.8]} 7.
Nxc3 {[%clk 0:03:10]} 7... O-O {[%clk 0:03:04.7]} 8. Bd3 {[%clk 0:02:58.7]} 8...
c5 {[%clk 0:03:04]} 9. O-O {[%clk 0:02:58.6]} 9... d6 {[%clk 0:03:04.7]} 10. b4
{[%clk 0:02:58.8]} 10... Qe7 {[%clk 0:02:57.9]} 11. Bb2 {[%clk 0:02:59.7]} 11...
Nbd7 {[%clk 0:02:57.6]} 12. Rc1 {[%clk 0:02:59.8]} 12... Rfc8 {[%clk 0:02:56.3]}
13. Qe2 {[%clk 0:02:54.2]} 13... h6 {[%clk 0:02:52.9]} 14. Rfd1 {[%clk
0:02:53.3]} 14... e5 {[%clk 0:02:51.1]} 15. bxc5 {[%clk 0:02:40.1]} 15... dxc5
{[%clk 0:02:40.8]} 16. d5 {[%clk 0:02:38.7]} 16... e4 {[%clk 0:02:28.7]} 17. Bb1
{[%clk 0:02:38.8]} 17... Nf8 {[%clk 0:02:19.9]} 18. a4 {[%clk 0:02:05.9]} 18...
Ng6 {[%clk 0:02:14.3]} 19. d6 {[%clk 0:01:58.4]} 19... Qe6 {[%clk 0:02:10.9]}
20. Rd2 {[%clk 0:01:58.7]} 20... Re8 {[%clk 0:02:09.5]} 21. Rcd1 {[%clk
0:01:59.1]} 21... Bc6 {[%clk 0:02:06.3]} 22. Nb5 {[%clk 0:01:51.6]} 22... Bxb5
{[%clk 0:02:06]} 23. axb5 {[%clk 0:01:52.1]} 23... Nd7 {[%clk 0:02:05.4]} 24.
Rd5 {[%clk 0:01:42.6]} 24... a5 {[%clk 0:02:02.2]} 25. bxa6 {[%clk 0:01:43.1]}
25... Rxa6 {[%clk 0:02:03]} 26. Bc3 {[%clk 0:01:41.1]} 26... f5 {[%clk
0:02:01.1]} 27. Qb2 {[%clk 0:01:39.6]} 27... Qf7 {[%clk 0:01:50.5]} 28. Bc2
{[%clk 0:01:31]} 28... Nh4 {[%clk 0:01:44.5]} 29. Kh1 {[%clk 0:01:16.4]} 29...
Qg6 {[%clk 0:01:44.7]} 30. Rg1 {[%clk 0:01:16.7]} 30... Rea8 {[%clk 0:01:40.6]}
31. Bb3 {[%clk 0:01:12.9]} 31... Ra1 {[%clk 0:01:33.4]} 32. Qxa1 {[%clk
0:01:09.9]} 32... Rxa1 {[%clk 0:01:33.5]} 33. Bxa1 {[%clk 0:01:11.4]} 33... Qe6
{[%clk 0:01:27.4]} 34. Rd2 {[%clk 0:01:11.4]} 34... b5 {[%clk 0:01:25.3]} 35.
Rc2 {[%clk 0:00:52.2]} 35... b4 {[%clk 0:01:26]} 36. Rd2 {[%clk 0:00:53.4]}
36... Kh7 {[%clk 0:01:25.7]} 37. Bb2 {[%clk 0:00:53.9]} 37... Ng6 {[%clk
0:01:26]} 38. Ra1 {[%clk 0:00:52.2]} 38... Nge5 {[%clk 0:01:26.4]} 39. Bxe5
{[%clk 0:00:49]} 39... Qxe5 {[%clk 0:01:27.4]} 40. Ra7 {[%clk 0:00:46.8]} 40...
Qc3 {[%clk 0:01:28.1]} 41. Rd1 {[%clk 0:00:21.1]} 41... Qxb3 {[%clk 0:01:28.8]}
42. Rf1 {[%clk 0:00:22.2]} 42... Qxc4 {[%clk 0:01:29.5]} 43. Kg1 {[%clk
0:00:22.6]} 43... Qe6 {[%clk 0:01:29.8]} 44. Rc1 {[%clk 0:00:22.7]} 44... c4
{[%clk 0:01:30.1]} 45. Rb7 {[%clk 0:00:22.8]} 45... b3 {[%clk 0:01:30.8]} 46. h3
{[%clk 0:00:23.8]} 46... h5 {[%clk 0:01:15.8]} 47. Rb4 {[%clk 0:00:24.5]} 47...
Qxd6 {[%clk 0:01:13.8]} 48. Rcxc4 {[%clk 0:00:24.1]} 48... Nc5 {[%clk
0:01:10.1]} 49. Rb5 {[%clk 0:00:22.7]} 49... Nd3 {[%clk 0:01:00.7]} 50. Rxb3
{[%clk 0:00:21.4]} 50... Qd5 {[%clk 0:01:00.6]} 51. Rbc3 {[%clk 0:00:22.1]}
51... Qa5 {[%clk 0:01:00.1]} 52. Rc2 {[%clk 0:00:20.5]} 52... Qa1+ {[%clk
0:00:58.1]} 53. Kh2 {[%clk 0:00:21.5]} 53... Qe1 {[%clk 0:00:59.2]} 54. Rc7
{[%clk 0:00:21.8]} 54... Nxf2 {[%clk 0:00:59.6]} 55. Rf7 {[%clk 0:00:22.3]}
55... Kg6 {[%clk 0:00:55.9]} 56. Rcc7 {[%clk 0:00:22.1]} 56... Qxe3 {[%clk
0:00:49]} 57. Rxg7+ {[%clk 0:00:22.9]} 57... Kf6 {[%clk 0:00:50.4]} 58. Rgf7+
{[%clk 0:00:24.2]} 58... Ke5 {[%clk 0:00:50.2]} 59. Rce7+ {[%clk 0:00:18.5]}
59... Kf4 {[%clk 0:00:50.9]} 60. Rg7 {[%clk 0:00:19.8]} 60... Nd3 {[%clk
0:00:48]} 61. Ref7 {[%clk 0:00:18.4]} 61... Qf2 {[%clk 0:00:46.4]} 62. Rg6
{[%clk 0:00:18.6]} 62... Ke3 {[%clk 0:00:46.6]} 63. Rg3+ {[%clk 0:00:17.8]}
63... Ke2 {[%clk 0:00:45.4]} 64. Rg5 {[%clk 0:00:18.5]} 64... f4 {[%clk
0:00:45.9]} 65. Re7 {[%clk 0:00:18]} 65... e3 {[%clk 0:00:46.1]} 66. Ra5 {[%clk
0:00:16.6]} 66... Qh4 {[%clk 0:00:30.9]} 67. Ra2+ {[%clk 0:00:16.9]} 67... Kf1
{[%clk 0:00:31.5]} 68. Ra1+ {[%clk 0:00:17.8]} 68... Ne1 {[%clk 0:00:32.1]} 69.
Rg7 {[%clk 0:00:17.7]} 69... Qf2 {[%clk 0:00:30.6]} 70. h4 {[%clk 0:00:10.5]}
70... f3 {[%clk 0:00:30.8]} 71. Kh3 {[%clk 0:00:10.9]} 71... fxg2 {[%clk
0:00:31.7]} 72. Rxe1+ {[%clk 0:00:11.4]} 72... Qxe1 {[%clk 0:00:28.7]} 73. Rxg2
{[%clk 0:00:11.7]} 73... Qc3 {[%clk 0:00:24.6]} 74. Rg3 {[%clk 0:00:11.7]} 74...
Qe5 {[%clk 0:00:25.2]} 75. Rf3+ {[%clk 0:00:12.4]} 75... Ke2 {[%clk 0:00:25.8]}
76. Rf2+ {[%clk 0:00:12.4]} 76... exf2 {[%clk 0:00:25.7]} 77. Kg2 {[%clk
0:00:13.1]} 77... f1=Q# {[%clk 0:00:26.4]} 0-1

[Event "*** Titled Tuesday Blitz"]
[Site "Chess.com"]
[Date "2018.06.05"]
[Round "2"]
[White "RamonManon0g"]
[Black "dlp300"]
[Result "1-0"]
[WhiteElo "2288"]
[BlackElo "2391"]
[TimeControl "180+2"]
[EndTime "13:27:31 PDT"]
[Termination "RamonManon0g won by resignation"]

1. d4 {[%clk 0:03:01.9]} 1... Nf6 {[%clk 0:02:57.8]} 2. Bg5 {[%clk 0:03:02.6]}
2... Ne4 {[%clk 0:02:52.6]} 3. Bf4 {[%clk 0:03:03.6]} 3... c5 {[%clk 0:02:53.2]}
4. d5 {[%clk 0:03:01.8]} 4... Qb6 {[%clk 0:02:52]} 5. Nd2 {[%clk 0:03:02.5]}
5... Nxd2 {[%clk 0:02:49.7]} 6. Bxd2 {[%clk 0:03:03.1]} 6... Qxb2 {[%clk
0:02:44.5]} 7. e4 {[%clk 0:03:04.2]} 7... Qb6 {[%clk 0:02:27]} 8. Rb1 {[%clk
0:03:03.7]} 8... Qc7 {[%clk 0:02:27.1]} 9. Bc3 {[%clk 0:03:01.5]} 9... e5 {[%clk
0:02:25.1]} 10. dxe6 {[%clk 0:02:52.4]} 10... dxe6 {[%clk 0:02:24.2]} 11. Nf3
{[%clk 0:02:49]} 11... Nc6 {[%clk 0:02:24.7]} 12. Bb5 {[%clk 0:02:49.3]} 12...
Bd7 {[%clk 0:02:25.6]} 13. O-O {[%clk 0:02:49.6]} 13... Rd8 {[%clk 0:02:19.7]}
14. Qd2 {[%clk 0:02:46.3]} 14... f6 {[%clk 0:02:16.8]} 15. e5 {[%clk 0:02:27.6]}
15... Nxe5 {[%clk 0:02:05]} 16. Bxe5 {[%clk 0:02:27.6]} 16... fxe5 {[%clk
0:02:02.3]} 17. Qg5 {[%clk 0:02:27.6]} 17... Bxb5 {[%clk 0:01:52.5]} 18. Rxb5
{[%clk 0:02:29.5]} 18... Bd6 {[%clk 0:01:52.4]} 19. Qh5+ {[%clk 0:02:20.2]}
19... g6 {[%clk 0:01:50.7]} 20. Qh6 {[%clk 0:02:21.5]} 20... b6 {[%clk
0:01:47.2]} 21. Ng5 {[%clk 0:02:19.9]} 21... Qe7 {[%clk 0:01:42.6]} 22. Rb3
{[%clk 0:02:19.3]} 22... Kd7 {[%clk 0:01:30.6]} 23. Rd1 {[%clk 0:02:10.4]} 23...
Kc8 {[%clk 0:01:29.1]} 24. Rf3 {[%clk 0:02:06.4]} 24... Rdf8 {[%clk 0:01:25.4]}
25. Rfd3 {[%clk 0:01:56.6]} 25... Bc7 {[%clk 0:01:22.7]} 26. Rd7 {[%clk
0:01:44.7]} 26... Qxd7 {[%clk 0:01:23.3]} 27. Rxd7 {[%clk 0:01:46.6]} 27... Kxd7
{[%clk 0:01:22.6]} 28. Qg7+ {[%clk 0:01:48.1]} 28... Kd6 {[%clk 0:01:18.7]} 29.
Ne4+ {[%clk 0:01:42.2]} 29... Kc6 {[%clk 0:01:19.1]} 30. f3 {[%clk 0:01:30.4]}
30... Rd8 {[%clk 0:01:14.5]} 31. c4 {[%clk 0:01:23]} 31... a6 {[%clk 0:01:11.9]}
32. a4 {[%clk 0:01:23.5]} 32... Rb8 {[%clk 0:01:05.5]} 33. Qf7 {[%clk
0:01:22.1]} 33... Rhe8 {[%clk 0:01:03.1]} 34. Nf6 {[%clk 0:01:23]} 34... Red8
{[%clk 0:00:58.6]} 35. Qxe6+ {[%clk 0:01:22]} 35... Rd6 {[%clk 0:00:58.5]} 36.
Qf7 {[%clk 0:01:15.8]} 36... Rd1+ {[%clk 0:00:51.1]} 37. Kf2 {[%clk 0:01:16.6]}
37... Rd2+ {[%clk 0:00:51.9]} 38. Ke3 {[%clk 0:01:16.2]} 38... Rd4 {[%clk
0:00:48.3]} 39. Nd5 {[%clk 0:01:15.2]} 39... Bd8 {[%clk 0:00:43.1]} 40. Qe6+
{[%clk 0:01:11.7]} 40... Kb7 {[%clk 0:00:42.9]} 41. Qd7+ {[%clk 0:01:01.4]}
41... Ka8 {[%clk 0:00:41.9]} 42. Qc6+ {[%clk 0:01:00.6]} 42... Ka7 {[%clk
0:00:42.8]} 43. Qd7+ {[%clk 0:00:39.2]} 43... Ka8 {[%clk 0:00:42.9]} 44. Qd6
{[%clk 0:00:39.2]} 44... Rxc4 {[%clk 0:00:32.4]} 45. a5 {[%clk 0:00:40.3]} 45...
Ka7 {[%clk 0:00:12.3]} 46. Qd7+ {[%clk 0:00:30]} 46... Ka8 {[%clk 0:00:11.9]}
47. Qc6+ {[%clk 0:00:30.7]} 47... Ka7 {[%clk 0:00:12]} 48. Kd3 {[%clk
0:00:26.2]} 48... Rd4+ {[%clk 0:00:12]} 49. Ke2 {[%clk 0:00:27]} 49... bxa5
{[%clk 0:00:12.6]} 50. Qxc5+ {[%clk 0:00:25.9]} 50... Ka8 {[%clk 0:00:13.3]} 51.
Qc6+ {[%clk 0:00:23.1]} 51... Ka7 {[%clk 0:00:14.4]} 52. Qd6 {[%clk 0:00:21.1]}
52... Rb2+ {[%clk 0:00:14.6]} 53. Ke1 {[%clk 0:00:21.4]} 53... Rb5 {[%clk
0:00:12.4]} 54. Qd7+ {[%clk 0:00:17]} 54... Rb7 {[%clk 0:00:08.7]} 55. Qxd8
{[%clk 0:00:18.1]} 55... a4 {[%clk 0:00:09.2]} 56. Qd6 {[%clk 0:00:17.5]} 56...
Rc4 {[%clk 0:00:07.3]} 57. Ne3 {[%clk 0:00:14.8]} 57... Rcb4 {[%clk 0:00:05.3]}
58. Qc5+ {[%clk 0:00:15]} 58... Ka8 {[%clk 0:00:05.2]} 59. Nd5 {[%clk
0:00:16.1]} 59... Rb1+ {[%clk 0:00:04.8]} 60. Kf2 {[%clk 0:00:17.1]} 60... R1b2+
{[%clk 0:00:06.4]} 61. Kg3 {[%clk 0:00:18.1]} 61... a3 {[%clk 0:00:04.5]} 62.
Qxa3 {[%clk 0:00:18.7]} 62... R2b5 {[%clk 0:00:03.5]} 63. Qxa6+ {[%clk
0:00:19.6]} 63... Kb8 {[%clk 0:00:05.1]} 64. Qd6+ {[%clk 0:00:19.5]} 64... Ka7
{[%clk 0:00:05.2]} 65. Qxe5 {[%clk 0:00:20.7]} 1-0

[Event "*** Titled Tuesday Blitz"]
[Site "Chess.com"]
[Date "2018.06.05"]
[Round "2"]
[White "bangchess21"]
[Black "Fianchettoed-Tower"]
[Result "1-0"]
[WhiteElo "2538"]
[BlackElo "2317"]
[TimeControl "180+2"]
[EndTime "13:28:11 PDT"]
[Termination "bangchess21 won by resignation"]

1. e4 {[%clk 0:03:01.9]} 1... g6 {[%clk 0:03:00.2]} 2. d4 {[%clk 0:03:02.5]}
2... Bg7 {[%clk 0:03:01.6]} 3. Nc3 {[%clk 0:03:02.8]} 3... d6 {[%clk 0:03:02.7]}
4. f4 {[%clk 0:03:03.1]} 4... Nf6 {[%clk 0:03:02.2]} 5. Nf3 {[%clk 0:03:04.1]}
5... O-O {[%clk 0:03:03.6]} 6. e5 {[%clk 0:03:05.1]} 6... Nfd7 {[%clk
0:03:03.5]} 7. Bc4 {[%clk 0:03:05.7]} 7... c5 {[%clk 0:02:59.3]} 8. e6 {[%clk
0:03:04.6]} 8... Nb6 {[%clk 0:03:00.5]} 9. exf7+ {[%clk 0:03:04.5]} 9... Kh8
{[%clk 0:03:01.7]} 10. h4 {[%clk 0:03:05.1]} 10... Nxc4 {[%clk 0:02:59.6]} 11.
h5 {[%clk 0:03:06.2]} 11... Bg4 {[%clk 0:02:56.9]} 12. hxg6 {[%clk 0:01:53.4]}
12... h5 {[%clk 0:02:56.5]} 13. Qd3 {[%clk 0:01:35.6]} 13... cxd4 {[%clk
0:02:17.9]} 14. Ne4 {[%clk 0:01:03]} 14... Qa5+ {[%clk 0:01:58.2]} 15. Kf2
{[%clk 0:00:46.7]} 15... Ne3 {[%clk 0:01:52.2]} 16. Nxd4 {[%clk 0:00:31.7]}
16... Nf5 {[%clk 0:01:46.4]} 17. Ne6 {[%clk 0:00:14.8]} 17... Nc6 {[%clk
0:01:36.3]} 18. c3 {[%clk 0:00:10.7]} 18... Nh6 {[%clk 0:01:06.3]} 19. Nxf8
{[%clk 0:00:08.4]} 19... Rxf8 {[%clk 0:01:05.9]} 20. Be3 {[%clk 0:00:09.3]}
20... Bf5 {[%clk 0:00:59.2]} 21. Rxh5 {[%clk 0:00:03]} 21... Bxe4 {[%clk
0:00:59.5]} 22. Qe2 {[%clk 0:00:03.1]} 22... Bxg6 {[%clk 0:00:39.1]} 23. Rxa5
{[%clk 0:00:03.5]} 23... Nxa5 {[%clk 0:00:41]} 24. Rh1 {[%clk 0:00:04.7]} 24...
Rxf7 {[%clk 0:00:40.9]} 25. Kg3 {[%clk 0:00:05.4]} 25... Kg8 {[%clk 0:00:40.8]}
26. Qb5 {[%clk 0:00:06.6]} 26... Nf5+ {[%clk 0:00:41.4]} 27. Kf2 {[%clk
0:00:07.8]} 27... b6 {[%clk 0:00:35.1]} 28. g4 {[%clk 0:00:08.4]} 28... Nxe3
{[%clk 0:00:35.9]} 29. Kxe3 {[%clk 0:00:10.3]} 29... Rf8 {[%clk 0:00:23.2]} 30.
Qg5 {[%clk 0:00:08.3]} 30... Bf7 {[%clk 0:00:23.2]} 31. Qf5 {[%clk 0:00:07.1]}
31... Nc4+ {[%clk 0:00:24]} 32. Kd3 {[%clk 0:00:04.1]} 32... Nxb2+ {[%clk
0:00:21.2]} 33. Kc2 {[%clk 0:00:05]} 33... Bb3+ {[%clk 0:00:19]} 34. axb3 {[%clk
0:00:04.9]} 34... Rxf5 {[%clk 0:00:19.1]} 35. gxf5 {[%clk 0:00:06.7]} 35... Nc4
{[%clk 0:00:16.3]} 36. bxc4 {[%clk 0:00:07.7]} 36... Kf7 {[%clk 0:00:16]} 37.
Ra1 {[%clk 0:00:08.6]} 37... Bh6 {[%clk 0:00:17.3]} 38. Rxa7 {[%clk 0:00:08.6]}
38... Bxf4 {[%clk 0:00:18.7]} 39. Kd3 {[%clk 0:00:09.9]} 39... Kf6 {[%clk
0:00:20.1]} 40. Ke4 {[%clk 0:00:11]} 40... Bg3 {[%clk 0:00:20.9]} 41. Rb7 {[%clk
0:00:12.4]} 41... Bf2 {[%clk 0:00:22]} 42. Rb8 {[%clk 0:00:13.9]} 42... Be1
{[%clk 0:00:20.8]} 43. Rf8+ {[%clk 0:00:14.5]} 43... Kg7 {[%clk 0:00:21.2]} 44.
Re8 {[%clk 0:00:15.9]} 44... Kf7 {[%clk 0:00:22.4]} 45. Rb8 {[%clk 0:00:16.1]}
45... Bf2 {[%clk 0:00:20.3]} 46. Kf3 {[%clk 0:00:17.1]} 46... Bc5 {[%clk
0:00:20.9]} 47. Kf4 {[%clk 0:00:18.1]} 47... Kf6 {[%clk 0:00:21.9]} 48. Rb7
{[%clk 0:00:19.3]} 48... Bf2 {[%clk 0:00:20.8]} 49. Rb8 {[%clk 0:00:20.7]} 49...
Bc5 {[%clk 0:00:20.8]} 50. Rf8+ {[%clk 0:00:21.6]} 50... Kg7 {[%clk 0:00:21.1]}
51. Re8 {[%clk 0:00:23.1]} 51... Kf7 {[%clk 0:00:22.2]} 52. Rh8 {[%clk
0:00:24.3]} 52... Kg7 {[%clk 0:00:22.9]} 53. Rh2 {[%clk 0:00:24.3]} 53... Kf6
{[%clk 0:00:22.4]} 54. Re2 {[%clk 0:00:25.2]} 54... Bg1 {[%clk 0:00:21.8]} 55.
Re6+ {[%clk 0:00:25.7]} 55... Kf7 {[%clk 0:00:22.7]} 56. Kg5 {[%clk 0:00:27.2]}
56... Bf2 {[%clk 0:00:21.6]} 57. Re2 {[%clk 0:00:27.5]} 57... Bc5 {[%clk
0:00:20.5]} 58. Rh2 {[%clk 0:00:28.5]} 58... Be3+ {[%clk 0:00:21.1]} 59. Kg4
{[%clk 0:00:28.8]} 59... Kf6 {[%clk 0:00:15.5]} 60. Re2 {[%clk 0:00:30.2]} 60...
Bc5 {[%clk 0:00:16.7]} 61. Re6+ {[%clk 0:00:31.6]} 61... Kf7 {[%clk 0:00:18.1]}
62. Kh5 {[%clk 0:00:32.9]} 62... Ba3 {[%clk 0:00:15.3]} 63. Re4 {[%clk
0:00:31.5]} 63... Bb2 {[%clk 0:00:15.5]} 64. Re3 {[%clk 0:00:30.7]} 64... Kf6
{[%clk 0:00:16.7]} 65. Kg4 {[%clk 0:00:32]} 65... Ba1 {[%clk 0:00:16]} 66. Rh3
{[%clk 0:00:29.2]} 66... Bb2 {[%clk 0:00:16.6]} 67. Kf4 {[%clk 0:00:30.4]} 67...
Bc1+ {[%clk 0:00:17.8]} 68. Ke4 {[%clk 0:00:31.6]} 68... Bd2 {[%clk 0:00:19.2]}
69. Rf3 {[%clk 0:00:32.5]} 69... Be1 {[%clk 0:00:19.6]} 70. Kd5 {[%clk
0:00:33.4]} 70... Kg5 {[%clk 0:00:12.8]} 71. Kc6 {[%clk 0:00:33.7]} 71... Kg4
{[%clk 0:00:13.9]} 72. Re3 {[%clk 0:00:23]} 72... Bh4 {[%clk 0:00:14.9]} 73.
Re4+ {[%clk 0:00:20.8]} 73... Kg5 {[%clk 0:00:15.2]} 74. Kxb6 {[%clk 0:00:19.1]}
74... Bf2+ {[%clk 0:00:15.2]} 75. Kc6 {[%clk 0:00:19.6]} 75... Kf6 {[%clk
0:00:14.7]} 76. Re6+ {[%clk 0:00:18]} 76... Kf7 {[%clk 0:00:14.8]} 77. Kd7
{[%clk 0:00:18]} 77... Bh4 {[%clk 0:00:16.2]} 78. Rh6 {[%clk 0:00:13.8]} 78...
Bf6 {[%clk 0:00:17.4]} 79. Rh7+ {[%clk 0:00:14.8]} 79... Kf8 {[%clk 0:00:17.2]}
80. Ke6 {[%clk 0:00:13.4]} 80... Bxc3 {[%clk 0:00:15.6]} 81. Rxe7 {[%clk
0:00:13.6]} 81... Be5 {[%clk 0:00:17.1]} 82. Rd7 {[%clk 0:00:13.7]} 82... Kg8
{[%clk 0:00:17.7]} 1-0

[Event "*** Titled Tuesday Blitz"]
[Site "Chess.com"]
[Date "2018.06.05"]
[Round "2"]
[White "Jadeit90"]
[Black "aqmarkin"]
[Result "1-0"]
[WhiteElo "2168"]
[BlackElo "2221"]
[TimeControl "180+2"]
[EndTime "13:28:11 PDT"]
[Termination "Jadeit90 won by resignation"]

1. g3 {[%clk 0:03:01.9]} 1... d5 {[%clk 0:03:00.6]} 2. Bg2 {[%clk 0:02:59.4]}
2... Nf6 {[%clk 0:03:01.6]} 3. c4 {[%clk 0:02:49.9]} 3... c6 {[%clk 0:02:57.2]}
4. cxd5 {[%clk 0:02:49]} 4... Nxd5 {[%clk 0:02:54.6]} 5. Nf3 {[%clk 0:02:46.7]}
5... Nd7 {[%clk 0:02:51.7]} 6. O-O {[%clk 0:02:46.5]} 6... N7f6 {[%clk
0:02:52.1]} 7. d4 {[%clk 0:02:35.2]} 7... Bf5 {[%clk 0:02:48.4]} 8. Nc3 {[%clk
0:02:36]} 8... e6 {[%clk 0:02:43.4]} 9. Re1 {[%clk 0:02:33.5]} 9... Bd6 {[%clk
0:02:30]} 10. Ne5 {[%clk 0:02:33.1]} 10... Nxc3 {[%clk 0:02:14.8]} 11. bxc3
{[%clk 0:02:32.7]} 11... Bxe5 {[%clk 0:02:01.9]} 12. dxe5 {[%clk 0:02:33.5]}
12... Qxd1 {[%clk 0:02:00.2]} 13. Rxd1 {[%clk 0:02:35.4]} 13... Nd5 {[%clk
0:02:00.7]} 14. Bb2 {[%clk 0:02:34.9]} 14... Nb6 {[%clk 0:01:51.1]} 15. e4
{[%clk 0:02:33.4]} 15... Bg6 {[%clk 0:01:50.8]} 16. Rd4 {[%clk 0:02:31.4]} 16...
c5 {[%clk 0:01:47.7]} 17. Rdd1 {[%clk 0:02:19.9]} 17... Nc4 {[%clk 0:01:38.6]}
18. Bc1 {[%clk 0:02:21]} 18... Ke7 {[%clk 0:01:28.5]} 19. Bg5+ {[%clk
0:02:18.1]} 19... f6 {[%clk 0:01:28.6]} 20. exf6+ {[%clk 0:02:19.5]} 20... gxf6
{[%clk 0:01:30.5]} 21. Bh4 {[%clk 0:02:21.1]} 21... e5 {[%clk 0:01:28.3]} 22. f4
{[%clk 0:02:20.9]} 22... Rhd8 {[%clk 0:01:26]} 23. Bf1 {[%clk 0:02:12.7]} 23...
Rxd1 {[%clk 0:01:11.2]} 24. Rxd1 {[%clk 0:02:06.9]} 24... Ne3 {[%clk 0:01:11.6]}
25. Re1 {[%clk 0:02:07.6]} 25... Nxf1 {[%clk 0:01:10.1]} 26. Kxf1 {[%clk
0:02:05.5]} 26... exf4 {[%clk 0:00:37.7]} 27. gxf4 {[%clk 0:02:06.2]} 27... Kf7
{[%clk 0:00:31.3]} 28. f5 {[%clk 0:02:01.8]} 28... Bh5 {[%clk 0:00:30.7]} 29. e5
{[%clk 0:02:03.3]} 29... fxe5 {[%clk 0:00:27.1]} 30. Rxe5 {[%clk 0:02:05.2]}
30... Re8 {[%clk 0:00:16.9]} 31. Rxc5 {[%clk 0:02:05.4]} 31... Re4 {[%clk
0:00:09.4]} 32. Rc7+ {[%clk 0:02:01.4]} 32... Kg8 {[%clk 0:00:10.2]} 33. Bg3
{[%clk 0:02:00.2]} 33... Be2+ {[%clk 0:00:08.1]} 34. Kf2 {[%clk 0:02:00.8]}
34... Ba6 {[%clk 0:00:09.1]} 35. f6 {[%clk 0:02:00.8]} 35... Re2+ {[%clk
0:00:06.1]} 36. Kf3 {[%clk 0:02:01.3]} 36... Kf8 {[%clk 0:00:05.1]} 37. f7
{[%clk 0:02:00.5]} 37... Re6 {[%clk 0:00:04.9]} 38. Bh4 {[%clk 0:01:54.2]} 38...
Be2+ {[%clk 0:00:05.5]} 39. Kf4 {[%clk 0:01:54.1]} 39... Bh5 {[%clk 0:00:06.6]}
40. Rxb7 {[%clk 0:01:52.2]} 40... a6 {[%clk 0:00:07.9]} 41. Kf5 {[%clk 0:01:29]}
41... Bxf7 {[%clk 0:00:04.8]} 42. Bf6 {[%clk 0:01:30.2]} 42... Re8 {[%clk
0:00:04.3]} 43. Ra7 {[%clk 0:01:29.8]} 43... Bg6+ {[%clk 0:00:05.5]} 44. Kg5
{[%clk 0:01:30.9]} 44... Re6 {[%clk 0:00:06.6]} 45. h4 {[%clk 0:01:30.4]} 45...
Rc6 {[%clk 0:00:07.8]} 46. Bd4 {[%clk 0:01:27.8]} 46... Bd3 {[%clk 0:00:08.5]}
47. h5 {[%clk 0:01:28.1]} 47... Bb5 {[%clk 0:00:09.5]} 48. Rxh7 {[%clk 0:01:26]}
48... Bd3 {[%clk 0:00:08.3]} 49. Ra7 {[%clk 0:01:25.5]} 49... Rd6 {[%clk
0:00:09.1]} 50. h6 {[%clk 0:01:26.4]} 50... Rd5+ {[%clk 0:00:09.7]} 51. Kf4
{[%clk 0:01:17.2]} 51... Rh5 {[%clk 0:00:10.5]} 52. Bg7+ {[%clk 0:01:16.5]}
52... Kg8 {[%clk 0:00:11.7]} 53. Ke3 {[%clk 0:01:16.8]} 53... Bb5 {[%clk
0:00:12.5]} 54. a4 {[%clk 0:01:15.3]} 54... Bxa4 {[%clk 0:00:11.6]} 55. Rxa6
{[%clk 0:01:16.1]} 55... Bb5 {[%clk 0:00:12.8]} 56. Rb6 {[%clk 0:01:13.3]} 56...
Bc4 {[%clk 0:00:13.9]} 57. Kd4 {[%clk 0:01:04.5]} 57... Bf1 {[%clk 0:00:14.6]}
58. Rb8+ {[%clk 0:01:02.6]} 58... Kh7 {[%clk 0:00:15.3]} 59. Rh8+ {[%clk
0:01:03.5]} 59... Kg6 {[%clk 0:00:16.6]} 60. Rf8 {[%clk 0:01:05.2]} 60... Bb5
{[%clk 0:00:15.1]} 61. Rf6+ {[%clk 0:01:02.4]} 61... Kh7 {[%clk 0:00:15.9]} 62.
Rd6 {[%clk 0:01:02.8]} 62... Bf1 {[%clk 0:00:13.7]} 63. Rc6 {[%clk 0:01:01.7]}
63... Bb5 {[%clk 0:00:13]} 64. Rc7 {[%clk 0:01:03]} 64... Bf1 {[%clk 0:00:11.5]}
65. c4 {[%clk 0:01:04.4]} 65... Rh4+ {[%clk 0:00:11.8]} 66. Kd5 {[%clk
0:01:04.6]} 66... Rh5+ {[%clk 0:00:13.1]} 67. Kd6 {[%clk 0:01:05.8]} 67... Rf5
{[%clk 0:00:08]} 68. c5 {[%clk 0:01:06.9]} 68... Bg2 {[%clk 0:00:08.2]} 69. Ke7
{[%clk 0:01:04.5]} 69... Kg6 {[%clk 0:00:08.8]} 70. Kd8 {[%clk 0:00:54.9]} 70...
Rd5+ {[%clk 0:00:06.1]} 71. Kc8 {[%clk 0:00:55.6]} 71... Bh3+ {[%clk 0:00:04.9]}
72. Kb8 {[%clk 0:00:56.9]} 72... Bg2 {[%clk 0:00:05.6]} 73. Ka7 {[%clk
0:00:57.7]} 73... Rd1 {[%clk 0:00:06.4]} 74. c6 {[%clk 0:00:56]} 74... Rc1
{[%clk 0:00:06.8]} 75. Kb6 {[%clk 0:00:57]} 75... Rb1+ {[%clk 0:00:07.4]} 76.
Kc5 {[%clk 0:00:58.4]} 76... Rc1+ {[%clk 0:00:08.6]} 77. Kd6 {[%clk 0:00:59.8]}
77... Rd1+ {[%clk 0:00:09.9]} 78. Ke7 {[%clk 0:00:47.5]} 78... Re1+ {[%clk
0:00:10.8]} 79. Kd8 {[%clk 0:00:48.9]} 79... Rd1+ {[%clk 0:00:11.9]} 80. Kc8
{[%clk 0:00:50.4]} 80... Rd5 {[%clk 0:00:11]} 81. Ra7 {[%clk 0:00:47.4]} 81...
Bh3+ {[%clk 0:00:08.5]} 82. Kc7 {[%clk 0:00:47.5]} 82... Rc5 {[%clk 0:00:08.4]}
83. Ra6 {[%clk 0:00:48.7]} 83... Bg2 {[%clk 0:00:08.9]} 84. Rb6 {[%clk 0:00:50]}
84... Rc2 {[%clk 0:00:09.2]} 85. Kd6 {[%clk 0:00:50.9]} 85... Rd2+ {[%clk
0:00:10.1]} 86. Ke5 {[%clk 0:00:49.7]} 86... Re2+ {[%clk 0:00:11.3]} 87. Kd4
{[%clk 0:00:48.1]} 87... Rd2+ {[%clk 0:00:11.3]} 88. Ke3 {[%clk 0:00:49.5]}
88... Rd6 {[%clk 0:00:12.4]} 89. c7 {[%clk 0:00:48.7]} 89... Rxb6 {[%clk
0:00:11.3]} 90. c8=Q {[%clk 0:00:50.1]} 1-0